Cogmind - Beta 14 @@@ ROGUE MODE // 2025.03.30 @ 17:30:57 Player: GiggleBox Result: Self-destructed Performance ------------- Evolutions (2) 1000 Regions Visited (5) 1000 Robots Destroyed (29) 145 Value Destroyed (514) 514 Prototype IDs (25) 500 Alien Tech Used (0) 0 Bonus (300) 300 TOTAL SCORE: 3459 Bonus ------- Aligned with FarCom 300 Cogmind --------- Core Integrity 231/550 Matter 349/450 Energy 100/100 System Corruption 0% Temperature Cool (0) Movement Core (750) Ox14 Location -8/Materials Parts ------- > --- POWER (1) -------- (None) > --- PROPULSION (3) --- (None) > --- UTILITY (4) ------ High-capacity Storage Unit Large Matter Pod Targeting Computer > --- WEAPON (3) ------- (None) > --- INVENTORY (20) --- Light Ion Engine Improved Heat Sink Cooling System Advanced Visual Processing Unit Seismic Detector 0b10 Alert Chip Tractor Beam Grenade Launcher Datajack Peak State ------------ > --- POWER ------------ Ion Engine > --- PROPULSION ------- Improved Aluminum Leg Wheel > --- UTILITY ---------- High-capacity Storage Unit Improved Terrain Scanner Targeting Computer Targeting Computer > --- WEAPON ----------- Light Assault Rifle Rocket Launcher Mace > --- INVENTORY -------- Light Ion Engine Improved Heat Sink Cooling System Large Matter Pod Advanced Visual Processing Unit Seismic Detector 0b10 Alert Chip Tractor Beam Grenade Launcher Datajack [Rating: 17] Favorites ----------- Power Ion Engine Engine Ion Engine Propulsion Light Treads Treads Light Treads Leg Improved Aluminum Leg Wheel Wheel Utility Targeting Computer Device Improved Terrain Scanner Storage High-capacity Storage Unit Processor Targeting Computer Protection Light Armor Plating Weapon EM Pulse Gun Energy Gun EM Pulse Gun Ballistic Gun Light Assault Rifle Launcher Rocket Launcher Special Weapon Mining Laser Impact Weapon Mace Special Melee Weapon Datajack Build | -11 -10 -10 -10 -9 -8 ------- Run | Yrd Mat Min Exi Min Mat Slots Evolved 4 | . . . . . 4 Power . | . . . . . . Propulsion 1 | . . . . . 1 Utility 2 | . . . . . 2 Weapon 1 | . . . . . 1 Parts Attached 39 | 4 9 . . 13 13 Power 1 | . . . . . 1 Engine 1 | . . . . . 1 Core . | . . . . . . Reactor . | . . . . . . Propulsion 13 | 2 3 . . 5 3 Treads 6 | 2 2 . . 2 . Leg 1 | . . . . . 1 Wheel 6 | . 1 . . 3 2 Hover . | . . . . . . Flight . | . . . . . . Utility 8 | 2 2 . . . 4 Device 3 | 2 . . . . 1 Storage 2 | . 1 . . . 1 Processor 2 | . 1 . . . 1 Hackware . | . . . . . . Protection 1 | . . . . . 1 Artifact . | . . . . . . Weapon 17 | . 4 . . 8 5 Energy Gun 6 | . 3 . . 3 . Energy Cannon . | . . . . . . Ballistic Gun 6 | . 1 . . 3 2 Ballistic Cannon . | . . . . . . Launcher 1 | . . . . . 1 Special Weapon 2 | . . . . 1 1 Impact Weapon 1 | . . . . . 1 Slashing Weapon . | . . . . . . Piercing Weapon . | . . . . . . Special Melee Weapon 1 | . . . . 1 . Unidentified Prototypes . | . . . . . . Parts Lost 22 | . . . . 6 16 Power 2 | . . . . 1 1 Propulsion 8 | . . . . 3 5 Utility 3 | . . . . . 3 Weapon 9 | . . . . 2 7 Highest Loss Streak 8 | . . . . 5 8 To Critical Strikes . | . . . . . . Average Slot Usage (%) 95 | . 100 100 100 88 78 Engine 11 | . 14 14 14 5 4 Treads 21 | . 25 28 28 13 4 Wheel 4 | . 2 . . 12 11 Device 1 | . . . . . 6 Storage 13 | . 14 14 14 14 10 Processor 13 | . 13 14 14 14 11 Energy Gun 18 | . 16 28 28 21 4 Ballistic Gun 7 | . 11 . . 5 11 Peak Build Rating 17 | 7 9 9 9 10 17 Average Rating 9 | 6 8 9 9 9 13 On Entrance 8 | 6 7 9 9 9 10 Naked Turns . | . . . . . . Heaviest Build 55 | 13 49 49 49 49 55 Greatest Support 40 | 40 40 40 40 40 23 Greatest Overweight (x) 17 | . 2 1 1 13 17 Average Overweight (x) 1 | . 1 1 1 3 3 Largest Inventory Capacity 20 | 8 20 20 20 20 20 Average Capacity 19 | 8 19 20 20 20 20 Most Carried 20 | 6 17 17 18 20 19 Average Carried 14 | 3 12 17 17 18 13 Final Capacity 20 | 8 20 20 20 20 20 Final Carried 20 | 4 17 17 18 20 9 Class Distribution -------------------- 91% | Mutant 5% | Skirmisher Dominant Class ---------------- Mutant | -10/Materials Mutant | -10/Mines Mutant | -10/Exiles Mutant | -9/Mines Skirmisher | -8/Materials Resources | -11 -10 -10 -10 -9 -8 ----------- Run | Yrd Mat Min Exi Min Mat Matter Collected 828 | 266 326 . . 176 60 Remotely . | . . . . . . Salvage Created 932 | 180 333 64 . 149 206 Parts 60 | 14 27 3 . . 16 Haulers Intercepted 2 | . 2 . . . . Recyclers Shooed 2 | 1 1 . . . . Parts Field Recycled . | . . . . . . Retrieved Matter . | . . . . . . Parts Self-Destructed . | . . . . . . Prevented . | . . . . . . Kills | -11 -10 -10 -10 -9 -8 ------- Run | Yrd Mat Min Exi Min Mat Combat Hostiles Destroyed 26 | . 9 3 . 10 4 Melee 1 | . . . . . 1 Guns 19 | . 7 1 . 10 1 AOE 6 | . 2 2 . . 2 Classes Destroyed 10 | 2 4 . . 1 3 Worker 1 | . . . . . 1 Builder 1 | . . . . . 1 Tunneler 4 | 4 . . . . . Hauler 2 | . 2 . . . . Recycler 2 | 1 . . . . 1 Watcher 3 | . 3 . . . . Swarmer 9 | . 7 2 . . . Grunt 6 | . 2 1 . . 3 Duelist 1 | . . . . . 1 Assembled 10 | . . . . 10 . Best Kill Streak 5 | 3 3 2 . 4 5 Combat Bots Only 4 | . 3 2 . 4 2 Max Kills in Single Turn 2 | 1 2 1 . 1 2 Gunslinging 1 | . 1 . . . . Exploded 2 | . 2 1 . . 1 Melee 1 | . . . . . 1 Uniques/NPCs Destroyed . | . . . . . . Combat | -11 -10 -10 -10 -9 -8 -------- Run | Yrd Mat Min Exi Min Mat Hostile Shots Fired 201 | . 56 9 . 43 93 Missed 53 | . 15 6 . 8 24 Damage Taken 2176 | . 482 26 . 472 1196 Core 537 | . 116 . . 102 319 Absorbed by Shields . | . . . . . . Core Remaining (%) 56 | 100 . . . 12 . Volleys Fired 141 | 15 53 5 . 43 25 Largest 3 | 2 2 2 . 2 3 Hottest 120 | 40 80 80 . 100 120 Shots Fired 271 | 30 106 10 . 79 46 Gun 259 | 30 106 10 . 75 38 Cannon . | . . . . . . Launcher 7 | . . . . . 7 Special 5 | . . . . 4 1 Kinetic 198 | 30 91 . . 44 33 Thermal 5 | . . . . 4 1 Explosive 7 | . . . . . 7 Electromagnetic 61 | . 15 10 . 31 5 Robot Hit Streak 19 | 9 19 3 . 8 16 Robot Miss Streak 5 | 2 5 2 . 3 2 Penetration Max . | . . . . . . Secondary Targets 6 | . 3 . . 3 . Max Gunslinging Chain 1 | . 1 . . 1 . Shots Hit Robots 198 | 23 71 6 . 53 45 Core Hits 82 | 10 26 3 . 24 19 Critical Kills 1 | . 1 . . . . Critical Parts Destroyed 5 | . 2 . . . 3 Critical Strikes 6 | . 3 . . . 3 Destroy 4 | . 3 . . . 1 Smash 2 | . . . . . 2 Melee Attacks 14 | . . . . 6 8 Impact 8 | . . . . . 8 Slashing . | . . . . . . Piercing . | . . . . . . Sneak Attacks 5 | . . . . 5 . Combat Hostiles 5 | . . . . 5 . Follow-up Attacks . | . . . . . . Damage Inflicted 2478 | 181 709 127 . 442 1019 Guns 1559 | 181 606 56 . 442 274 Cannons . | . . . . . . Explosions 706 | . 76 65 . . 565 Melee 179 | . . . . . 179 Ramming 34 | . 27 6 . . 1 Kinetic 1118 | 181 499 . . 217 221 Thermal 141 | . 76 65 . . . Explosive 565 | . . . . . 565 Electromagnetic 441 | . 107 56 . 225 53 Impact 179 | . . . . . 179 Slashing . | . . . . . . Piercing . | . . . . . . Highest Corruption 4 | . . . . 4 . Average Corruption 4 | . . . . 4 . Corruption Purged . | . . . . . . Corruption Blocked . | . . . . . . Effects 12 | . . . . 12 . Matter Fused 4 | . . . . 4 . Heat Flow Errors 3 | . . . . 3 . Energy Discharges 2 | . . . . 2 . Data Loss (minor) 1 | . . . . 1 . Misfires 2 | . . . . 2 . Overload Shots . | . . . . . . Overflow Damage 64 | . . . . . 64 Projectiles . | . . . . . . Explosions 9 | . . . . . 9 Melee 55 | . . . . . 55 Knockbacks . | . . . . . . Impact . | . . . . . . Kinetic . | . . . . . . Secondary . | . . . . . . Self-Inflicted Damage 54 | . 42 . . . 12 Shots 2 | . 1 . . . 1 Rammed 9 | 1 5 1 . . 2 Targets Rammed 9 | 1 5 1 . . 2 Kicked . | . . . . . . Crushed . | . . . . . . Highest Temperature 222 | . 72 72 . 222 69 Average Temperature 28 | . 24 33 . 33 19 Received Heat Transfer 925 | . 186 . . 280 459 Siege Activations . | . . . . . . Robots Corrupted . | . . . . . . Combat Hostiles . | . . . . . . Parts Fried . | . . . . . . Impact Corruptions 2 | . . . . . 2 Robots Melted . | . . . . . . Combat Hostiles . | . . . . . . Parts Melted . | . . . . . . Heat Transferred 50 | . . 50 . . . Parts Sabotaged . | . . . . . . Parts Stolen . | . . . . . . Parts Stripped . | . . . . . . Power Chain Reactions 3 | . 1 2 . . . Alert | -11 -10 -10 -10 -9 -8 ------- Run | Yrd Mat Min Exi Min Mat Peak Influence 183 | 25 183 104 . 4 109 Initial 16 | . 16 . . . . Average 42 | 12 59 68 . . 24 Maximum Alert Level . | . . . . . . Low Security (%) 100 | 100 100 100 . 100 100 Level 1 . | . . . . . . Level 2 . | . . . . . . Level 3 . | . . . . . . Level 4 . | . . . . . . Level 5 . | . . . . . . High Security . | . . . . . . Max Security . | . . . . . . Squads Dispatched 4 | . 2 . . . 2 Investigation . | . . . . . . Extermination . | . . . . . . Reinforcement 4 | . 2 . . . 2 Assault . | . . . . . . Garrison . | . . . . . . Intercept . | . . . . . . Searches Triggered . | . . . . . . Construction Impeded 1 | . . . . . 1 Haulers Reinforced . | . . . . . . Active Scanning Responses . | . . . . . . Cargo Convoy Interrupts . | . . . . . . Stealth | -11 -10 -10 -10 -9 -8 --------- Run | Yrd Mat Min Exi Min Mat Distress Signals 1 | . . . . . 1 Communications Jammed . | . . . . . . Distress Signals . | . . . . . . Times Spotted 45 | . 20 4 . 10 11 Peak Tracking Total 3 | . 3 2 . 3 3 Tactical Retreats 7 | . 1 1 . 1 4 Traps | -11 -10 -10 -10 -9 -8 ------- Run | Yrd Mat Min Exi Min Mat Traps Triggered . | . . . . . . Indirectly . | . . . . . . Trap Hack Attempts . | . . . . . . Triggered . | . . . . . . Disarmed . | . . . . . . Reprogrammed . | . . . . . . Reused . | . . . . . . Traps Extracted . | . . . . . . Installed . | . . . . . . Triggered . | . . . . . . Machines | -11 -10 -10 -10 -9 -8 ---------- Run | Yrd Mat Min Exi Min Mat Machines Disabled 1 | . 1 . . . . Max in Single Turn 1 | . 1 . . . . Machines Repaired . | . . . . . . Machines Dismantled . | . . . . . . Machines Sabotaged . | . . . . . . Overloaded Fab Kills . | . . . . . . Hacking | -11 -10 -10 -10 -9 -8 --------- Run | Yrd Mat Min Exi Min Mat Machines Accessed 9 | . 8 . 1 . . Terminals 6 | . 6 . . . . Fabricators . | . . . . . . Repair Stations . | . . . . . . Recycling Units 2 | . 2 . . . . Scanalyzers . | . . . . . . Garrison Access . | . . . . . . Total Hacks 30 | . 29 . 1 . . Successful 19 | . 18 . 1 . . Failed 11 | . 11 . . . . Catastrophic 3 | . 3 . . . . Database Lockouts . | . . . . . . Manual 22 | . 21 . 1 . . Terminals 25 | . 25 . . . . Fabricators . | . . . . . . Repair Stations . | . . . . . . Recycling Units 4 | . 4 . . . . Scanalyzers . | . . . . . . Garrison Access . | . . . . . . Terminal Hacks 8 | . 7 . 1 . . Part Schematic 1 | . 1 . . . . Robot Analysis 2 | . 2 . . . . Prototype ID Bank 1 | . 1 . . . . Locate Traps 1 | . 1 . . . . Hauler Manifests 1 | . 1 . . . . Zone Layout 1 | . 1 . . . . Derelict Proto ID Bank 1 | . . . 1 . . Fabricator Hacks . | . . . . . . Repair Station Hacks . | . . . . . . Recycling Unit Hacks 3 | . 3 . . . . Report Inventory 1 | . 1 . . . . Retrieve Components 2 | . 2 . . . . Scanalyzer . | . . . . . . Garrison Access Hacks . | . . . . . . Unauthorized Hacks 8 | . 8 . . . . Terminals 8 | . 8 . . . . Botnet 3 | . 3 . . . . Skim 5 | . 5 . . . . Fabricators . | . . . . . . Repair Stations . | . . . . . . Recycling Units . | . . . . . . Scanalyzers . | . . . . . . Garrison Access . | . . . . . . Data Cores Recovered . | . . . . . . Used . | . . . . . . Hacking Detections 8 | . 8 . . . . Full Trace Events . | . . . . . . Feedback Events . | . . . . . . Feedback Blocked . | . . . . . . Robot Schematics Acquired . | . . . . . . Robots Built . | . . . . . . Authchips . | . . . . . . Time . | . . . . . . Total Robot Build Rating . | . . . . . . Part Schematics Acquired 1 | . 1 . . . . Parts Built . | . . . . . . Authchips . | . . . . . . Time . | . . . . . . Total Part Build Rating . | . . . . . . Parts Repaired . | . . . . . . Time . | . . . . . . Parts Recycled . | . . . . . . Recycled Matter . | . . . . . . Retrieved Matter . | . . . . . . Retrieved Components 10 | . 10 . . . . Parts Scanalyzed . | . . . . . . Part Schematics Acquired . | . . . . . . Parts Damaged . | . . . . . . Bothacking | -11 -10 -10 -10 -9 -8 ------------ Run | Yrd Mat Min Exi Min Mat Used RIF Installer . | . . . . . . Robots Hacked 1 | . . . . 1 . Non-combat . | . . . . . . Combat 1 | . . . . 1 . Robot Hacks Applied 1 | . . . . 1 . parse_system 1 | . . . . 1 . Relay Couplers Released . | . . . . . . Fabnet Peak Effective % . | . . . . . . Robots Rewired . | . . . . . . Allies Hacked . | . . . . . . Hacks Repelled . | . . . . . . Allies | -11 -10 -10 -10 -9 -8 -------- Run | Yrd Mat Min Exi Min Mat Total Allies . | . . . . . . Largest Group . | . . . . . . Highest-Rated Group . | . . . . . . Highest-Rated Ally . | . . . . . . Total Orders . | . . . . . . Ally Attacks . | . . . . . . Total Damage . | . . . . . . Kills . | . . . . . . Allies Corrupted . | . . . . . . Allies Melted . | . . . . . . Intel | -11 -10 -10 -10 -9 -8 ------- Run | Yrd Mat Min Exi Min Mat Robot Analysis Total 2 | . 2 . . . . Derelict Logs Recovered 2 | . . . . 2 . Drone Launches . | . . . . . . Drone Recoveries . | . . . . . . Exploration | -11 -10 -10 -10 -9 -8 ------------- Run | Yrd Mat Min Exi Min Mat Turns Passed 4421 | 106 2105 351 591 776 492 Spaces Moved 1782 | 32 778 135 246 412 179 Core 3 | . . . . 1 2 Treads 944 | 32 510 135 246 20 1 Legs 8 | . . . . . 8 Wheels 827 | . 268 . . 391 168 Hover . | . . . . . . Flight . | . . . . . . Fastest Speed 110 | 160 130 240 240 130 110 Average Speed 187 | 160 194 240 240 146 145 Slowest Speed 900 | 160 240 240 240 700 900 Overloaded Moves . | . . . . . . Propulsion Burnouts . | . . . . . . Robots Hopped . | . . . . . . Cave-ins Triggered . | . . . . . . Exploration Rate (%) 44 | 4 98 26 62 65 11 Regions Visited 5 Branch Regions 3 Pre-discovered Areas 2 | . 2 . . . . Known Exits Taken . | . . . . . . Unknown Exits Taken 5 | 1 1 1 1 1 . Scrap Searched 4 | . . . . 4 . Spaces Dug 4 | . . . . 4 . Terrain Destroyed 71 | . 2 12 . 4 53 Melee . | . . . . . . Projectile 5 | . . . . 4 1 AOE 66 | . 2 12 . . 52 Terrain Rammed . | . . . . . . Walls Destroyed . | . . . . . . Machines Disabled . | . . . . . . Actions | -11 -10 -10 -10 -9 -8 --------- Run | Yrd Mat Min Exi Min Mat Total 2580 | 62 1272 152 248 501 345 Wait 573 | 6 416 12 2 21 116 Move 1778 | 32 777 134 245 411 179 Hop . | . . . . . . Pick Up 21 | 1 12 . 1 6 1 Fast Attach 5 | 1 . . . 2 2 Attach 14 | . . . . 3 11 Detach . | . . . . . . Swap 20 | 3 9 . . 8 . Drop 6 | 4 . . . 1 1 Fire 141 | 15 53 5 . 43 25 Melee 14 | . . . . 6 8 Ram 4 | . 2 . . . 2 Kick . | . . . . . . Crush 4 | . 3 1 . . . Escape Stasis . | . . . . . . Rewire . | . . . . . . Trap . | . . . . . . Miscellaneous . | . . . . . . Route ------- -11/Scrapyard -10/Materials (discovered 5 exits: [*Mat x3] / [*Min x2]) -10/Mines -10/Exiles (discovered 2 exits: [*Min x2]) -9/Mines -8/Materials History --------- Turn | Location | Event 19 | -11/Scrapyard | Discovered new exit (range 3) 107 | -11/Scrapyard | Entered Materials 315 | -10/Materials | Build established: Mutant 393 | -10/Materials | Discovered new exit (range 7) 656 | -10/Materials | Discovered new exit (range 10) 958 | -10/Materials | Discovered new exit (range 5) 1121 | -10/Materials | Discovered new exit (range 8) 1535 | -10/Materials | Discovered new exit (range 15) 1762 | -10/Materials | Loaded intel: 1 repair station location 1832 | -10/Materials | Learned location of Subcaves (-10) 1890 | -10/Materials | Learned location of 1 exit from Storage 1938 | -10/Materials | Loaded intel: 7 terminal locations 1976 | -10/Materials | Learned location of Mines (-9) 2002 | -10/Materials | Learned location of 1 exit from Recycling 2041 | -10/Materials | Learned 2 Mines zone layouts 2074 | -10/Materials | Learned Storage emergency access door positions 2117 | -10/Materials | Learned location of 1 exit from Recycling 2170 | -10/Materials | Learned Storage trap positions 2212 | -10/Materials | Entered Mines 2287 | -10/Mines | Deemed a non-threat by the Exiles lab entrance 2287 | -10/Mines | Discovered new exit (range 5) 2563 | -10/Mines | Entered Exiles 2597 | -10/Exiles | Discovered new exit (range 15) 2633 | -10/Exiles | Met 8R-AWN 2674 | -10/Exiles | Met EX-HEX 2739 | -10/Exiles | Met EX-BIN 2846 | -10/Exiles | Aligned with FarCom system 2849 | -10/Exiles | Given EX-Vault access code 2906 | -10/Exiles | Opened EX-Vault 2921 | -10/Exiles | Found 0b10 Alert Chip 2977 | -10/Exiles | Warned to stay clear of 0b10 Research branches 3004 | -10/Exiles | Exiles lab attacked by MAIN.C 3130 | -10/Exiles | Discovered new exit (range 12) 3154 | -10/Exiles | Left Exiles lab with 0b10 Alert Chip 3154 | -10/Exiles | Entered Mines 3155 | -9/Mines | Assembled infested the area 3160 | -9/Mines | Assisted by a Guerilla fighting off Assembled 3390 | -9/Mines | Core integrity fell below 50% 3490 | -9/Mines | Core integrity fell below 20% 3520 | -9/Mines | Lost 5 parts (1p3n1w) 3609 | -9/Mines | Received a Rocket Launcher from a helpful Derelict 3753 | -9/Mines | Learned Materials non-interactive machine intel 3859 | -9/Mines | Learned Materials stockpile data 3906 | -9/Mines | Discovered new exit (range 8) 3930 | -9/Mines | Entered Materials 3930 | -8/Materials | Evolved 4 slots: Propulsion x1, Utility x2, Weapon x1 3932 | -8/Materials | Loaded intel: 33 non-interactive machine locations 4242 | -8/Materials | Lost 8 parts (3n1u4w) 4394 | -8/Materials | Lost 4 parts (1n1u2w) 4419 | -8/Materials | Core integrity fell below 50% 4422 | -8/Materials | Self-destructed Last Messages --------------- 04386_ U-05 Engineer builds a Wall. 04389_ T-07 Excavator is excavating. 04390_ U-05 Engineer builds a Door. 04391_ U-05 Engineer lays Concrete. 04393_ K-01 Serf collects debris. 04394_ U-05 Engineer lays Concrete. 04396_ Y-45 Defender suffers critical hit (Smash). 04396_ Destroyed Lgt. Treads. 04396_ Y-45 Defender system corrupted by crushing effect. 04396_ U-05 Engineer lays Concrete. 04399_ Y-45 Defender suffers critical hit (Smash). 04399_ Destroyed Heat Sink. 04399_ Y-45 Defender system corrupted by crushing effect. 04400_ U-05 Engineer lays Concrete. 04406_ Wheel destroyed. 04406_ Mace destroyed. 04407_ Slammed into Y-45 Defender. 04412_ K-01 Serf collects debris. 04412_ Ion Engine destroyed. 04415_ Slammed into Y-45 Defender. Map ----- +----------------------------------------------------+ | | | | | | | | | ???????????????????????????################??#?### | | ???????????????????????????# #??#??# | | ???????????????????????????# ##?##?# ! | | ???????????????????????????# ##???## | | ???????????????????????????# ####### | | ???????????????????????????# #?# | | ???????????????????????????# ### ! | | ?????????????????????#?????#######+######### # | | ???????????????????????????????# ####### ### | | ???????????????????????????????# | | ???????????????????????????????# | | ???????????????????????????????# | | ???????????????????????????????# ########+#### | | ???????????????????????????????### ###???## | | ?????????????????????????????????# #???##?# """" | | ?????????????????????????????????# #???#??# """" | | ????????????????????????????###### #??????# """" | | ????????????????????????????# # #+######## | | ???????????????????????????## # # # """" | | ???????????????????????????# # """# """" | | ?????????????# [##+####### ##### """# """"? | | ????????? @ #! """# ????? | | ????????? Y Y + = """###????? | | ????????????## ######## ####+#* """#??????? | | ?????????????#??????# # # !% # #??????? | | ????????????????????# + * # #??????? | | ????????????????????# # # #??????? | | ????????????????????# # + # #######??????? | | ????????????"""?"""?# ### # ####????????????? | | ????????????"""?"""?###???# # #???????????????? | | ????????????"""?"""???????# # #???????????????? | | ??????????????????????????# # #???????????????? | | ??????????????????????????# # #??????????????"" | | ??????????????????????????# ######??????????????"" | | ??????????????????????????# #???????????????????"" | | ??????????????????????????#+#????????????????????? | | ????????????????????????????????????????????????"" | | ????????????????????????????????????????????????"" | | ????????????"""?????????????????????????????????"" | | ????????????"""??????????????"""?????????????????? | | ????????????"""??????????[???"""?????????????????? | | ?????????????????????????????"""?????????????????? | | ???????????????????????????????????????????!?????! | | ?????????????????????????????????????????????????? | | ?????????????????????????????????????????????????? | | ?????????????????????????????????????????????????? | +----------------------------------------------------+ Best States ------------- Heat Dissipation 31 Energy Generation 10 Energy Capacity 250 Matter Stores 349 Matter Capacity 450 Sight Range 16 Terrain Scan Range 16 Terrain Scan Density 10 Armor Coverage 150 Evasion (%) 40 Targeting Accuracy 10 Recoil Reduction 2 Item Schematics ----------------- Huge Storage Unit | -10/Materials | Hacked Robot Schematics ------------------ None Fabricated ------------ Nothing Alien Tech Used ----------------- None Achievements -------------- None Challenges ------------ None Game ------ Seed ComponentSpacefoldScanner Manual? 0 Play Time 00:28:50 Cumulative 47.6 hours Start 2025.03.30 @ 17:01:37 End 2025.03.30 @ 17:30:57 Sessions 1 Manual Loads 0 Difficulty Rogue Special Mode None Game No. 55 Rogue 55 Adventurer 0 Explorer 0 Win Type - Total 0 Types 0/0/0/0/0/0/0/0/0 Lore% 13 Gallery% 34 Achievement% 28 Wizard Run 0 Options --------- Layout 0 ASCII 0 Keyboard 1 Movement Numpad Keybinds 0 Fullscreen 1 Font 24/Terminus Map View 76x50 Zoom Use 0% Tactical HUD 1 Map Filters NONE Filters NONE Steam 1 RUN: d9381e43-7472-488c-b331-90b3bae09fc3